[Event "44th Chess Olympiad Women 2022"]
[Site "Chennai"]
[Date "2022.08.03"]
[Round "6.16"]
[White "Markantonaki, Haritomeni"]
[Black "Wafa, Shahenda"]
[Result "1-0"]
[WhiteElo "2154"]
[BlackElo "2115"]
[Annotator "TA"]
[PlyCount "129"]
[EventDate "2022.??.??"]
[TimeControl "60"]

{[%evp 21,129,66,135,131,129,127,128,135,141,137,137,131,129,132,127,128,126,
110,131,131,130,129,130,129,131,132,139,143,263,250,239,243,237,239,239,235,
265,235,272,283,441,426,513,484,584,346,313,273,282,263,278,275,262,247,251,
228,231,231,300,321,342,312,320,305,349,274,366,356,357,333,468,456,729,401,
675,593,637,635,616,597,669,720,710,706,637,620,899,846,861,727,1215,1197,1469,
1269,1793,1810,1806,1703,1610,1610,4622,4622,29975,5700,29986,29982,29975,0,
29984,29985]} 1. e4 {[%emt 0:00:03]} c5 {[%emt 0:00:08]} 2. Nf3 {[%emt 0:00:08]
} d6 {[%emt 0:00:12]} 3. d4 {[%emt 0:00:21]} cxd4 {[%emt 0:00:17]} 4. Nxd4 {
[%emt 0:00:07]} Nf6 {[%emt 0:00:45]} 5. Nc3 {[%emt 0:00:11]} g6 {[%emt 0:00:23]
} 6. Be3 {[%emt 0:00:35]} Bg7 {[%emt 0:00:11]} 7. f3 {[%emt 0:00:25]} O-O {
[%emt 0:00:18]} 8. Qd2 {[%emt 0:00:18]} Nc6 {[%emt 0:00:30]} 9. O-O-O {[%emt 0:
00:00]} Nxd4 {[%emt 0:00:16]} 10. Bxd4 {[%emt 0:00:28]} Be6 {[%emt 0:00:13]}
11. Kb1 {[%emt 0:05:27]} Qa5 {[%emt 0:13:29]} ({Better is} 11... Rc8 $14) 12.
Nd5 $1 $16 {[%emt 0:07:36] B76: Sicilian Dragon: Yugoslav Attack, 9 g4 and 9
0-0-0.} Qxd2 {[%emt 0:04:55][%cal Rd2d1] [#]} 13. Nxe7+ {[%emt 0:04:36]} (13.
Rxd2 Bxd5 14. exd5 Bh6 $11) 13... Kh8 {[%emt 0:00:08][%cal Rd2d1]} 14. Rxd2 {
[%emt 0:00:04] White is better.} Rfe8 {[%emt 0:02:31]} 15. Bxf6 {[%emt 0:05:12]
} Bxf6 {[%emt 0:00:11]} 16. Nd5 {[%emt 0:00:07]} Bg5 {[%emt 0:01:09]} 17. Rd1 {
[%emt 0:01:37] Hoping for Nc7.} Rac8 {[%emt 0:00:51] Inhibits Nc7.} 18. h4 {
[%emt 0:04:48][%cal Yh2h4,Yh4h5]} Bh6 {[%emt 0:01:45]} 19. h5 {[%emt 0:06:03] 
[#] hxg6 is the strong threat.} g5 $146 {[%emt 0:21:00]} ({Predecessor:} 19...
Kg7 20. hxg6 hxg6 21. Bb5 Red8 22. Ba4 Bxd5 23. Rxd5 Rc5 24. Rhd1 Rxd5 25. Rxd5
Bf4 {0-1 (48) Wessel,J (1619)-Guennigmann,S (1686) Muensterland 2002}) 20. Bb5
{[%emt 0:05:42][%cal Yf1b5,Yb5a4,Ya4b3]} Red8 {[%emt 0:01:34]} 21. Ba4 {
[%emt 0:01:16] White is more active.} Rc5 {[%emt 0:12:56]} 22. Bb3 {[%emt 0:04:
23]} b5 {[%emt 0:01:58]} 23. Ne3 {[%emt 0:00:00]} Bg7 {[%emt 0:03:06]} 24. Rd3
{[%emt 0:09:10]} Bc4 {[%emt 0:09:24]} (24... a5 $16 {might work better.} 25.
Ng4 a4) 25. Bxc4 $18 {[%emt 0:03:27]} bxc4 {[%emt 0:00:05]} 26. Ra3 {[%emt 0:
00:38]} Rb8 {[%emt 0:07:35]} 27. b3 {[%emt 0:01:26]} ({Worse is} 27. Rxa7 Bxb2
28. c3 Bxc3+ 29. Kc2 Bd4 $15) 27... a5 {[%emt 0:00:27]} 28. Rd1 {[%emt 0:02:15]
Inhibits Bd4.} cxb3 {[%emt 0:01:51]} 29. axb3 {[%emt 0:05:58]} Be5 {[%emt 0:08:
22]} 30. Rd5 {[%emt 0:03:50]} Rxd5 {[%emt 0:03:29]} (30... Bf4 {is a better
defense.}) 31. Nxd5 {[%emt 0:02:20] Endgame KRB-KRN} ({Less strong is} 31. exd5
Re8 $16) 31... Rb5 {[%emt 0:01:01]} 32. c4 {[%emt 0:00:40]} Rc5 {[%emt 0:00:27]
} 33. Kc2 {[%emt 0:00:00] [#] Threatens to win with h6.} Kg7 {[%emt 0:00:25]}
34. Kd3 {[%emt 0:00:00]} Bg3 {[%emt 0:00:23]} 35. Ne3 {[%emt 0:01:07] Strongly
threatening Nf5+.} Kf6 {[%emt 0:00:36]} 36. Nf5 {[%emt 0:01:57]} Be5 {[%emt 0:
01:50]} 37. g3 {[%emt 0:05:53][%cal Yg2g3,Yg3f4]} Ke6 {[%emt 0:01:30]} 38. Ra2
{[%emt 0:02:16]} Kd7 {[%emt 0:00:59]} 39. Rf2 {[%emt 0:01:11]} Rc7 {[%emt 0:00:
00]} 40. f4 {[%emt 0:01:24]} gxf4 {[%emt 0:00:09]} 41. gxf4 {[%emt 0:30:04]}
Bf6 {[%emt 0:30:27]} 42. Ra2 {[%emt 0:00:00]} Rb7 {[%emt 0:00:00]} 43. Kc2 {
[%emt 0:00:00]} Bd8 {[%emt 0:00:00]} 44. Ra1 {[%emt 0:00:00]} Ke6 {[%emt 0:00:
00]} 45. Rd1 {[%emt 0:00:00][%csl Gf5][%cal Rd1d6]} Rd7 {[%emt 0:00:00]} (45...
Bc7 {was called for.} 46. Nd4+ Kf6) 46. Nd4+ {[%emt 0:00:00]} Kf6 {[%emt 0:00:
00]} (46... Ke7 $142 47. Nc6+ Ke8 48. Nxd8 Rxd8) 47. Nc6 {[%emt 0:00:00]} Bc7 {
[%emt 0:00:00]} (47... Bb6 $142 48. Rd5 Ke6 49. f5+ Kf6) 48. Rd5 {[%emt 0:00:
00]} Bb6 {[%emt 0:00:00]} 49. Nxa5 {[%emt 0:00:00]} Ke6 {[%emt 0:00:00]} 50.
Nc6 {[%emt 0:00:00]} Rc7 {[%emt 0:00:00]} 51. Nd4+ {[%emt 0:00:00]} Bxd4 {
[%emt 0:00:00]} 52. Rxd4 {[%emt 0:00:00] KR-KR} Ra7 {[%emt 0:00:00]} 53. Kb2 {
[%emt 0:00:00]} f6 {[%emt 0:00:00]} 54. b4 {[%emt 0:00:00][%cal Yb3b4,Yb4b5,
Yb5b6,Yb6b7]} Rg7 {[%emt 0:00:00]} 55. Kb3 {[%emt 0:00:00]} Rg3+ {[%emt 0:00:
00]} 56. Ka4 {[%emt 0:00:00]} Rh3 {[%emt 0:00:00]} 57. b5 {[%emt 0:00:00]} Rxh5
{[%emt 0:00:00]} 58. f5+ {[%emt 0:00:00]} Ke5 {[%emt 0:02:13]} 59. Rd5+ {
[%emt 0:00:00]} Kxe4 {[%emt 0:00:09]} 60. b6 {[%emt 0:00:00] b7 would kill now.
} Rh1 {[%emt 0:00:25]} 61. b7 {[%emt 0:00:00] White wants to mate with Kb5.}
Ra1+ {[%emt 0:00:19]} 62. Kb5 {[%emt 0:00:00] Intending Kb6 and mate.} h5 {
[%emt 0:00:31]} 63. Kc6 {[%emt 0:01:06]} (63. Rd4+ Kxd4 64. Kc6 Rb1 65. Kc7
Kxc4 66. b8=Q Rxb8 67. Kxb8 h4 68. Kb7 h3 69. Kc7 Kd5 70. Kd7 h2 71. Ke8 h1=Q
72. Kf7 Ke5 73. Ke7 Qb7+ 74. Ke8 Kxf5 75. Kf8 Kg6 76. Ke8 Qc7 77. Kf8 Qf7#)
63... Ra6+ {[%emt 0:02:02]} 64. Kb5 {[%emt 0:00:24]} Ra1 $1 {[%emt 0:00:00]}
65. Kb6 {[%emt 0:00:05] Weighted Error Value: White=0.23 (precise) / Black=0.37
} (65. Rd4+ Kxd4 66. Kc6 Rb1 67. Kc7 h4 68. b8=Q Rxb8 69. Kxb8 h3 70. Kc7 Kxc4
71. Kd8 h2 72. Kd7 h1=Q 73. Ke7 Qh8 74. Ke6 Qg7 75. Kxd6 Qf7 76. Kc6 Qe7 77.
Kb6 Qd7 78. Ka6 Kc5 79. Ka5 Qb5#) 1-0

[Event "44th Chess Olympiad Women 2022"]
[Site "Chennai"]
[Date "2022.08.03"]
[Round "6.16"]
[White "Mona, Khaled"]
[Black "Avramidou, Anastasia"]
[Result "1/2-1/2"]
[WhiteElo "2127"]
[BlackElo "2274"]
[Annotator "TA"]
[PlyCount "153"]
[EventDate "2022.??.??"]
[TimeControl "60"]

{[%evp 22,153,-4,-16,-7,-52,-43,-135,-109,-102,-104,-104,-99,-100,-106,-91,
-108,-118,-101,-182,-185,-185,-126,-120,-118,-171,-172,-157,-170,-217,-202,
-186,-108,-112,-41,-42,-29,-18,-22,-30,-34,-43,-52,-43,-56,-54,-13,-58,-10,-68,
-70,-73,-50,-50,-50,-50,-50,-50,-50,-50,-50,-50,-53,-56,-57,-65,-58,-66,-65,
-98,-98,-98,-87,-105,-87,-105,-105,-105,-87,-87,-87,-87,-87,-87,-87,-87,-87,
-87,-87,-87,-87,-87,-87,-87,-87,-87,-38,-38,-38,-38,-38,-38,-38,-38,-38,-38,
-38,-38,-38,-38,-38,-38,-38,-38,-38,-38,-38,-38,-38,-38,-38,-38,-10,-38,-38,
-38,-38,-38,-38,-38,0,-38,0,-38]} 1. d4 {[%emt 0:00:03]} Nf6 {[%emt 0:00:17]}
2. Nf3 {[%emt 0:00:05]} g6 {[%emt 0:00:14]} 3. Bf4 {[%emt 0:00:08]} Bg7 {
[%emt 0:00:13]} 4. e3 {[%emt 0:00:32]} O-O {[%emt 0:00:37]} 5. Be2 {[%emt 0:00:
00]} d6 {[%emt 0:00:15]} 6. h3 {[%emt 0:00:06]} Nbd7 {[%emt 0:04:08]} 7. O-O {
[%emt 0:00:25]} b6 {[%emt 0:01:24]} 8. c4 {[%emt 0:00:32]} Bb7 {[%emt 0:00:07]}
9. Nc3 {[%emt 0:00:10]} Re8 {[%emt 0:02:43]} 10. Qc2 {[%emt 0:00:36]} e5 {
[%emt 0:03:32]} 11. Bh2 {[%emt 0:03:15]} exd4 {[%emt 0:10:02]} 12. exd4 {
[%emt 0:06:30]} Ne4 {[%emt 0:07:49] E61: King's Indian: Early deviations for
White, including Smyslov System.} 13. Nd5 {[%emt 0:13:27]} Ndf6 {[%emt 0:17:12]
} 14. Ne3 {[%emt 0:06:00]} (14. Nf4 $15) 14... Qe7 {[%emt 0:07:49][%cal Ye4f2]
White must now prevent ...Nxf2! Black is clearly better.} 15. Qd3 {[%emt 0:00:
00]} Bh6 {[%emt 0:07:23][%cal Ye4f2]} 16. Nc2 {[%emt 0:12:00] [#]} Ng3 $1 {
[%emt 0:12:18] [#]} 17. fxg3 $146 {[%emt 0:00:23]} ({Predecessor:} 17. Bxg3
Qxe2 18. Qb3 Bxf3 19. gxf3 Nh5 20. Rfe1 Qd2 21. Rad1 Qg5 22. Kh2 Nf4 23. Ne3 {
½-½ (86) Weetik,V (2423)-Seemann,J (2302) Chess.com INT 2021}) 17... Qxe2 {
[%emt 0:00:06]} 18. Qxe2 {[%emt 0:00:06]} Rxe2 {[%emt 0:00:03]} 19. Rf2 {
[%emt 0:00:15]} Rae8 {[%emt 0:02:42]} 20. d5 {[%emt 0:01:39]} (20. g4 $17)
20... Rxf2 {[%emt 0:11:02]} 21. Kxf2 {[%emt 0:00:07]} b5 {[%emt 0:00:04]} (
21... Ba6 $19 22. b3 Nxd5 $1) 22. cxb5 $17 {[%emt 0:05:32]} Bxd5 {[%emt 0:00:
13]} 23. b3 {[%emt 0:01:20]} (23. g4 $17 {was called for.}) 23... Ne4+ $19 {
[%emt 0:00:38]} 24. Kf1 {[%emt 0:01:49]} Nc3 {[%emt 0:00:48]} 25. Nfd4 {
[%emt 0:01:22]} (25. Nb4 $142) 25... Bg7 {[%emt 0:02:38]} 26. a4 {[%emt 0:03:
44] [#]} Ne4 {[%emt 0:01:25]} (26... a6 $1 $19 {aiming for ...axb5.} 27. g4
axb5 28. axb5 Re4) 27. Rd1 $17 {[%emt 0:01:23]} Nc5 {[%emt 0:02:04]} (27... f5
$17 {And now ...Nc5 would win.} 28. Nxf5 Bxb3 29. Nxg7 Kxg7) 28. Nb4 $15 {
[%emt 0:06:04]} Bxb3 {[%emt 0:02:37]} ({Much weaker is} 28... Nxb3 29. Nxd5
Bxd4 30. Rxd4 (30. Rd3 Re5 $11) 30... Nxd4 31. Nf6+ Kf8 32. Nxe8 Kxe8 33. Bg1
$11) (28... Be4 $5 {[%cal Rg7d4]}) 29. Nxb3 {[%emt 0:00:07]} Nxb3 {[%emt 0:00:
00]} 30. Nd5 {[%emt 0:00:30]} Re4 {[%emt 0:01:36]} 31. Nxc7 {[%emt 0:00:22]}
Be5 {[%emt 0:01:15]} 32. a5 {[%emt 0:03:01]} Nxa5 {[%emt 0:00:32]} 33. Bg1 {
[%emt 0:00:06]} Rb4 {[%emt 0:01:40]} 34. Bxa7 {[%emt 0:00:33]} Nc4 {[%emt 0:00:
00]} (34... Bxg3 $15 {is more appropriate.} 35. Bd4 Be5 36. Bxe5 dxe5) 35. Rd5
{[%emt 0:01:40]} (35. g4 $11) 35... Bxg3 {[%emt 0:00:03]} 36. Ke2 {[%emt 0:00:
00]} Be5 {[%emt 0:00:20]} 37. Bd4 {[%emt 0:00:45]} Bxd4 {[%emt 0:00:42]} 38.
Rxd4 {[%emt 0:00:04] Endgame KRN-KRN} Rb2+ $1 {[%emt 0:00:03]} 39. Kf3 {
[%emt 0:02:33]} Na3 {[%emt 0:00:30]} 40. Rd5 {[%emt 0:00:27]} Kf8 {[%emt 0:00:
37]} 41. Rxd6 {[%emt 0:14:39]} Nxb5 {[%emt 0:03:01]} 42. Nxb5 {[%emt 0:00:14]
Threatens to win with Nd4.} Rxb5 {[%emt 0:00:15] KR-KR} 43. Ra6 {[%emt 0:00:18]
} Kg7 {[%emt 0:00:56]} 44. Kg3 {[%emt 0:02:08]} Rb4 {[%emt 0:00:00]} 45. Kf3 {
[%emt 0:00:08]} h5 {[%emt 0:02:50][%cal Yh7h5,Yh5h4]} 46. Rc6 {[%emt 0:02:48]}
g5 {[%emt 0:05:27]} 47. Ra6 {[%emt 0:03:07]} f6 {[%emt 0:00:18]} 48. g4 {
[%emt 0:03:58]} Rb3+ {[%emt 0:00:34]} 49. Kg2 {[%emt 0:00:00]} Rb2+ {[%emt 0:
00:20]} 50. Kf3 {[%emt 0:00:38] [#]} h4 $1 {[%emt 0:00:00]} 51. Ra3 {[%emt 0:
00:17]} Kf7 {[%emt 0:02:15]} 52. Ke4 {[%emt 0:01:11]} Rf2 {[%emt 0:01:29]} 53.
Rb3 {[%emt 0:04:09]} Kg6 {[%emt 0:02:29]} 54. Kd5 {[%emt 0:01:19]} Re2 {
[%emt 0:02:59]} 55. Kd4 {[%emt 0:00:37]} Re6 {[%emt 0:00:00]} 56. Kd5 {[%emt 0:
00:14]} Ra6 {[%emt 0:02:34] Hoping for ...f5.} 57. Ke4 {[%emt 0:00:28] Against
f5+} Kf7 {[%emt 0:00:18]} 58. Kd5 {[%emt 0:01:20]} f5 {[%emt 0:03:58]} (58...
Ra4 $17) 59. gxf5 {[%emt 0:01:21]} Kf6 {[%emt 0:00:08]} 60. Ke4 {[%emt 0:02:21]
} Ra4+ {[%emt 0:00:05]} 61. Kf3 {[%emt 0:00:30]} Kxf5 {[%emt 0:00:20]} 62. Rb5+
{[%emt 0:00:12]} Kg6 {[%emt 0:00:04]} 63. Kg2 {[%emt 0:00:37]} Ra2+ {[%emt 0:
00:09]} 64. Kg1 {[%emt 0:00:16]} Re2 {[%emt 0:00:00]} 65. Ra5 {[%emt 0:00:27]}
Kf6 {[%emt 0:00:34]} 66. Ra8 {[%emt 0:02:17]} Kf5 {[%emt 0:00:30]} 67. Rf8+ {
[%emt 0:01:03]} Ke4 {[%emt 0:00:36]} 68. Kh1 {[%emt 0:00:38]} Rd2 {[%emt 0:01:
15]} 69. Rf7 {[%emt 0:00:27]} Rd3 {[%emt 0:00:00]} 70. Kg2 {[%emt 0:00:15]}
Rg3+ {[%emt 0:00:04]} 71. Kh2 {[%emt 0:00:04]} Kd3 {[%emt 0:01:24]} 72. Rf5 {
[%emt 0:00:52]} Ke3 {[%emt 0:00:31]} 73. Ra5 {[%emt 0:00:55]} Kd4 {[%emt 0:00:
47]} 74. Ra4+ {[%emt 0:00:15]} Ke5 {[%emt 0:00:00]} 75. Ra5+ {[%emt 0:00:06]}
Kd4 {[%emt 0:00:18]} 76. Ra4+ {[%emt 0:00:05]} Ke5 {[%emt 0:00:05]} 77. Ra5+ {
[%emt 0:00:04] And White is the lucky defender. Weighted Error Value: White=0.
11 (very precise) /Black=0.10 (very precise)} 1/2-1/2

[Event "44th Chess Olympiad Women 2022"]
[Site "Chennai"]
[Date "2022.08.03"]
[Round "6.17"]
[White "Machlik, Edit"]
[Black "Bayarmaa, Bayarjargal"]
[Result "1-0"]
[WhiteElo "2084"]
[BlackElo "2171"]
[Annotator "TA"]
[PlyCount "73"]
[EventDate "2022.??.??"]
[TimeControl "60"]

{[%evp 12,73,47,54,37,35,27,36,37,41,59,28,54,44,46,8,13,7,0,0,74,51,77,83,94,
91,85,80,102,81,89,67,91,82,95,0,16,0,0,0,17,-26,82,90,88,96,273,205,260,176,
570,471,1086,606,1003,984,938,880,2625,2447,29992,29983,29980,1976]} 1. d4 {
[%emt 0:00:03]} Nf6 {[%emt 0:00:05]} 2. c4 {[%emt 0:00:05]} g6 {[%emt 0:00:05]}
3. g3 {[%emt 0:00:10]} Bg7 {[%emt 0:00:11]} 4. Bg2 {[%emt 0:00:14]} d6 {
[%emt 0:00:17]} 5. Nc3 {[%emt 0:01:00]} O-O {[%emt 0:01:24]} 6. Nf3 {[%emt 0:
00:00]} Bg4 {[%emt 0:08:36]} 7. h3 {[%emt 0:10:34]} Bf5 {[%emt 0:05:02] E62:
King's Indian: Fianchetto: 6...c6 and Panno Variation (6...Nc6) without ...a6.}
8. Nh4 {[%emt 0:16:05]} Bc8 {[%emt 0:00:25]} 9. O-O {[%emt 0:06:14]} Nc6 {
[%emt 0:00:29] [#] White is slightly better.} 10. Nf3 $146 {[%emt 0:01:52]} ({
Predecessor:} 10. b3 e5 11. dxe5 Nxe5 12. Bb2 Re8 13. Qd2 Rb8 14. Rad1 Be6 15.
f4 Nc6 16. e4 {½-½ (46) Fish,G (2502)-Hoi,C (2419) Germany 2010}) 10... a6 {
[%emt 0:04:31]} 11. Qd3 {[%emt 0:02:03]} Nd7 {[%emt 0:04:56]} 12. e4 {[%emt 0:
00:00]} Rb8 {[%emt 0:03:32]} 13. d5 {[%emt 0:09:22]} Nde5 {[%emt 0:03:41]} 14.
Nxe5 {[%emt 0:00:37]} Nxe5 {[%emt 0:02:19]} 15. Qe2 {[%emt 0:01:04]} c5 {
[%emt 0:08:27]} (15... b5 $11 {remains equal.}) 16. a4 {[%emt 0:04:15]} (16. f4
$5 {[%cal Rf4e5]} Nd7 17. a4 $11) 16... Qa5 {[%emt 0:09:49]} 17. f4 {[%emt 0:
00:00]} Nd7 {[%emt 0:00:47]} 18. Bd2 {[%emt 0:03:11]} Qc7 {[%emt 0:00:35]} 19.
Kh2 {[%emt 0:00:42]} Re8 {[%emt 0:04:28]} 20. Rae1 {[%emt 0:00:25]} b6 {
[%emt 0:02:55]} 21. Nd1 {[%emt 0:03:40]} b5 {[%emt 0:01:15]} 22. axb5 {[%emt 0:
00:00]} axb5 {[%emt 0:00:06]} 23. Bc3 {[%emt 0:01:50]} (23. cxb5 $16 Nb6 24.
Bc3) 23... Bxc3 {[%emt 0:04:03]} 24. Nxc3 {[%emt 0:00:44]} bxc4 {[%emt 0:00:11]
} 25. e5 {[%emt 0:00:29]} Rb4 {[%emt 0:02:28]} 26. e6 {[%emt 0:03:23]} Nf6 {
[%emt 0:00:50]} (26... fxe6 $11 27. Qxe6+ Kg7) 27. f5 $16 {[%emt 0:01:07]
White is more active.} fxe6 {[%emt 0:01:24]} 28. fxe6 {[%emt 0:00:46]} Qb8 $2 {
[%emt 0:02:29] A mistake that costs the game.} (28... Ba6 $16) 29. Rf2 {
[%emt 0:00:06]} Bb7 {[%emt 0:00:53]} 30. Ref1 {[%emt 0:00:11] [#] And now Qd2
would win.} Kg7 $2 {[%emt 0:04:52]} (30... Ba6 {is a better chance.} 31. Rxf6
exf6) 31. g4 {[%emt 0:00:12][%cal Yg3g4,Yg4g5]} Qa8 {[%emt 0:09:10]} (31... Kg8
$142 32. Qe3 (32. g5 Nh5 $18) 32... Bc8) 32. Qd2 {[%emt 0:00:57]} Ba6 {[%emt 0:
04:19]} 33. g5 {[%emt 0:00:26]} Nh5 {[%emt 0:00:05]} 34. Bf3 {[%emt 0:00:00] 
[#] Black must now prevent Bxh5.} Qb8 {[%emt 0:06:39]} 35. Bxh5 {[%emt 0:00:23]
} gxh5 {[%emt 0:00:06]} 36. Qc2 {[%emt 0:00:45]} Kg8 {[%emt 0:00:00]} 37. Kg1 {
[%emt 0:00:32] Weighted Error Value: White=0.37/Black=0.69} 1-0

[Event "44th Chess Olympiad Women 2022"]
[Site "Chennai"]
[Date "2022.08.03"]
[Round "6.17"]
[White "Munkhzul, Davaakhuu"]
[Black "Rodsmoen, Maud"]
[Result "1-0"]
[WhiteElo "2095"]
[BlackElo "1975"]
[Annotator "NA RC"]
[PlyCount "67"]
[EventDate "2022.??.??"]
[TimeControl "60"]

1. e4 {[%emt 0:00:01]} c5 {[%emt 0:00:04]} 2. Nf3 {[%emt 0:00:04]} e6 {[%emt 0:
00:00]} 3. d4 {[%emt 0:00:05]} cxd4 {[%emt 0:00:04]} 4. Nxd4 {[%emt 0:00:05]}
Nc6 {[%emt 0:00:03]} 5. Nc3 {[%emt 0:00:08]} Qc7 {[%emt 0:00:04]} 6. Be3 {
[%emt 0:00:10]} a6 {[%emt 0:00:22]} 7. Be2 {[%emt 0:00:05]} Nf6 {[%emt 0:00:14]
} 8. O-O {[%emt 0:00:08]} Be7 {[%emt 0:01:44]} 9. f4 {[%emt 0:00:06]} d6 {
[%emt 0:00:44]} 10. Qe1 {[%emt 0:00:07]} O-O {[%emt 0:00:52]} 11. Qg3 {[%emt 0:
00:00]} Nxd4 {[%emt 0:00:41]} 12. Bxd4 {[%emt 0:00:02]} b5 {[%emt 0:00:49]} 13.
a3 {[%emt 0:00:06]} Bb7 {[%emt 0:01:00]} 14. Kh1 {[%emt 0:00:15]} Bc6 {[%emt 0:
00:00]} 15. Rae1 {[%emt 0:00:27]} Qb7 {[%emt 0:04:39]} 16. Bd3 {[%emt 0:00:22]}
g6 {[%emt 0:03:29]} 17. f5 {[%emt 0:04:34]} Rae8 {[%emt 0:06:40]} 18. Qh3 {
[%emt 0:06:39]} exf5 {[%emt 0:23:28]} 19. exf5 {[%emt 0:00:45]} Kg7 {[%emt 0:
00:00]} 20. Nd1 {[%emt 0:06:19]} Bd8 {[%emt 0:04:58]} 21. Rxe8 {[%emt 0:14:59]}
Rxe8 {[%emt 0:02:54]} 22. Ne3 {[%emt 0:01:15]} Re5 {[%emt 0:13:34]} 23. Bxe5 {
[%emt 0:03:23]} dxe5 {[%emt 0:00:17]} 24. fxg6 {[%emt 0:00:28]} hxg6 {[%emt 0:
00:00]} 25. Qg3 {[%emt 0:01:20]} Nh5 {[%emt 0:06:05]} 26. Qxe5+ {[%emt 0:07:22]
} f6 {[%emt 0:01:09]} 27. Qe6 {[%emt 0:01:47]} Bb6 {[%emt 0:02:52]} 28. Rf2 {
[%emt 0:02:24]} f5 {[%emt 0:09:44]} 29. Bxf5 {[%emt 0:18:07]} Bxg2+ {[%emt 0:
00:00]} 30. Rxg2 {[%emt 0:00:34]} Bxe3 {[%emt 0:00:39]} 31. Qxg6+ {[%emt 0:00:
00]} Kf8 {[%emt 0:00:27]} 32. Qg8+ {[%emt 0:00:07]} Ke7 {[%emt 0:00:29]} 33.
Qh7+ {[%emt 0:00:06]} Kf6 {[%emt 0:00:36]} 34. Qxb7 {[%emt 0:00:15]} 1-0

[Event "44th Chess Olympiad Women 2022"]
[Site "Chennai"]
[Date "2022.08.03"]
[Round "6.17"]
[White "Munkhzul, Turmunkh"]
[Black "Stanford, Sheila Barth"]
[Result "1/2-1/2"]
[WhiteElo "2277"]
[BlackElo "2097"]
[Annotator "TA"]
[PlyCount "124"]
[EventDate "2022.??.??"]
[TimeControl "60"]

{[%evp 14,124,18,12,27,14,30,0,0,0,0,0,0,0,0,0,0,0,0,0,0,0,0,0,0,0,0,0,0,0,0,0,
0,0,0,0,36,25,31,14,19,0,0,0,0,0,0,0,0,0,0,0,0,0,0,0,0,0,0,0,0,0,0,-6,0,0,0,0,
0,0,8,0,8,0,0,0,0,-8,-8,-14,-14,-14,-14,-14,0,-14,0,0,0,0,0,0,0,0,0,0,0,0,0,0,
0,-7,-7,-7,-7,-7,0,0,0,0,0,0,0]} 1. e4 {[%emt 0:00:02]} c5 {[%emt 0:00:07]} 2.
Nf3 {[%emt 0:00:14]} e6 {[%emt 0:00:10]} 3. d4 {[%emt 0:00:28]} cxd4 {[%emt 0:
00:00]} 4. Nxd4 {[%emt 0:00:06]} Nc6 {[%emt 0:00:36]} 5. Nc3 {[%emt 0:00:22]}
Qc7 {[%emt 0:00:43]} 6. Be3 {[%emt 0:00:23]} a6 {[%emt 0:01:01]} 7. Qd2 {
[%emt 0:00:39] 7.g4 is the fancy move.} Nf6 {[%emt 0:00:34]} 8. O-O-O {[%emt 0:
00:00]} Be7 {[%emt 0:01:00] B48: Sicilian: Taimanov: 5 Nc3 Qc7 6 Be3 a6
without Be2.} 9. f3 {[%emt 0:01:41]} b5 {[%emt 0:01:56]} 10. g4 {[%emt 0:00:37]
[%cal Yg2g4,Yg4g5] 10.Kb1 is vanishing.} Nxd4 {[%emt 0:01:39]} 11. Bxd4 {
[%emt 0:00:29]} Bb7 {[%emt 0:01:53]} 12. g5 {[%emt 0:00:43]} Nh5 {[%emt 0:00:
25]} 13. Be5 {[%emt 0:00:26]} Qxe5 {[%emt 0:00:32]} 14. Qxd7+ {[%emt 0:00:09]}
Kf8 {[%emt 0:00:05]} 15. Qxb7 {[%emt 0:00:15] The board is on fire.} Bxg5+ {
[%emt 0:00:26]} 16. Kb1 {[%emt 0:00:25]} Qb8 {[%emt 0:00:43]} 17. Rd7 {[%emt 0:
00:40]} Qxb7 {[%emt 0:00:09]} 18. Rxb7 {[%emt 0:00:23]} Bf6 {[%emt 0:00:18]}
19. a4 {[%emt 0:00:32]} Bxc3 {[%emt 0:00:45]} 20. bxc3 {[%emt 0:00:09]} bxa4 {
[%emt 0:00:26]} 21. Bxa6 {[%emt 0:00:20]} g5 {[%emt 0:00:00]} 22. Bb5 {[%emt 0:
02:00]} Kg7 {[%emt 0:01:16]} 23. Rg1 {[%emt 0:05:55]} h6 {[%emt 0:03:56] [#]}
24. c4 $146 {[%emt 0:04:04]} ({Predecessor:} 24. h4 Rab8 25. Rxb8 Rxb8 26. c4
Kf6 27. hxg5+ hxg5 28. Kb2 Nf4 29. Ka3 Ne2 30. Rg4 {½-½ (44) Almasi,Z (2694)
-Hansen,E (2593) Linares 2014}) 24... Rhb8 {[%emt 0:00:00]} 25. Rxb8 {[%emt 0:
13:53]} Rxb8 $14 {[%emt 0:00:03] Endgame KRB-KRN} 26. Ka2 {[%emt 0:00:58]} Nf4
{[%emt 0:06:55] The position is equal.} 27. Re1 {[%emt 0:01:30] Inhibits Ne2.}
Ng6 {[%emt 0:10:11]} 28. Ka3 {[%emt 0:00:00]} Ne5 {[%emt 0:01:05]} 29. Rf1 {
[%emt 0:03:08]} Rc8 {[%emt 0:09:01]} 30. Kb4 {[%emt 0:12:57]} a3 {[%emt 0:06:
09]} 31. c5 {[%emt 0:10:59]} a2 {[%emt 0:00:00][%cal Ye5f3]} 32. Ra1 {[%emt 0:
02:37]} Rb8 {[%emt 0:14:54]} ({Much less strong is} 32... Nxf3 33. Rxa2 Ne5 34.
Ra6 $14) 33. c4 {[%emt 0:05:48]} Nd3+ {[%emt 0:01:27]} 34. Kc3 {[%emt 0:01:45]}
Nxc5 {[%emt 0:00:11] [#] aiming for .. .Ra8.} 35. Rxa2 {[%emt 0:00:13]} Kf6 {
[%emt 0:04:51]} 36. Ra7 {[%emt 0:03:58]} g4 {[%emt 0:00:14]} 37. fxg4 {[%emt 0:
02:10][%cal Ye4e5]} Nxe4+ {[%emt 0:00:47]} 38. Kd4 {[%emt 0:00:15]} Nd2 {
[%emt 0:00:36]} 39. h3 {[%emt 0:08:59]} Rd8+ {[%emt 0:01:50]} 40. Ke3 {[%emt 0:
01:21]} Nb3 {[%emt 0:00:42]} 41. Rc7 {[%emt 0:00:00]} h5 {[%emt 0:14:01]} 42.
Ba4 {[%emt 0:00:00]} Nd4 {[%emt 0:01:33]} 43. c5 {[%emt 0:00:00]} hxg4 {
[%emt 0:01:11]} 44. hxg4 {[%emt 0:00:00]} Ra8 {[%emt 0:03:19]} 45. Bd7 {
[%emt 0:00:00]} Ke5 {[%emt 0:00:41]} 46. c6 {[%emt 0:00:00]} Ra3+ {[%emt 0:06:
29]} 47. Kd2 $1 {[%emt 0:00:00]} Kd6 {[%emt 0:00:56]} 48. Rc8 {[%emt 0:00:00]}
Ra6 {[%emt 0:03:08][%cal Rd4c6]} 49. Rf8 {[%emt 0:00:00]} Nxc6 {[%emt 0:00:20]}
50. Bxc6 {[%emt 0:00:00]} Rxc6 {[%emt 0:00:13]} 51. Rxf7 $11 {[%emt 0:00:00]
KR-KR} Rc4 {[%emt 0:01:03]} 52. Rg7 {[%emt 0:00:00]} Ke5 {[%emt 0:00:11]} 53.
Kd3 {[%emt 0:00:00]} Ra4 {[%emt 0:00:17]} 54. Rg6 {[%emt 0:00:00]} Ra3+ {
[%emt 0:00:18]} 55. Ke2 {[%emt 0:00:00]} Kf4 {[%emt 0:00:00]} 56. Kf2 {[%emt 0:
00:00]} e5 {[%emt 0:00:44][%cal Ye6e5,Ye5f4,Yf4f3]} 57. Rf6+ {[%emt 0:00:00]}
Kxg4 {[%emt 0:00:06]} 58. Ke2 {[%emt 0:00:00]} Ra4 {[%emt 0:00:31]} 59. Ke3 {
[%emt 0:00:00]} Rf4 {[%emt 0:00:08]} 60. Rxf4+ {[%emt 0:00:00] [#] Remove
Defender} exf4+ {[%emt 0:00:04]} 61. Kf2 {[%emt 0:00:00]} f3 {[%emt 0:00:10]}
62. Kf1 {[%emt 0:00:00]} Kg3 {[%emt 0:00:00] An interesting draw. Weighted
Error Value: White=0.03 (flawless) /Black=0.02 (flawless)} (62... Kf4 $5)
1/2-1/2